bitfinex/quotes_ETHUSD_20260121
["timestamp","ask_amount","ask_price","bid_price","bid_amount"]
[1768969281514,0.002,2983.2,2982.7,0.554]
[1768969281515,12.90587791,2983.0,2982.7,0.554]
[1768969281727,12.90587791,2983.0,2982.7,1.88514109]
[1768969282038,12.90587791,2983.0,2982.7,1.33114109]
[1768969282228,12.90587791,2983.0,2982.5,0.554]
[1768969282938,12.90587791,2983.0,2982.2,12.75741092]
[1768969283123,12.90587791,2983.0,2982.0,1.94164109]
[1768969283124,0.002,2982.4,2982.3,0.554]
[1768969284008,0.002,2982.4,2982.0,1.94164109]
[1768969284009,12.90587791,2982.4,2982.0,1.94164109]
[1768969284209,13.71659247,2982.4,2982.0,0.555]
[1768969284833,13.71659247,2982.4,2982.0,1.11]
[1768969287407,13.71659247,2982.4,2982.0,1.665]
[1768969288844,12.90587791,2982.4,2982.0,14.42241092]
[1768969289029,0.002,2982.4,2982.0,14.42241092]
[1768969289749,0.002,2982.4,2982.0,14.97741092]
[1768969290344,0.554,2982.9,2982.1,12.75741092]
[1768969290345,12.90387791,2982.9,2982.1,12.75741092]
[1768969290535,12.90387791,2982.9,2982.3,12.75741092]
[1768969292153,12.90387791,2982.9,2982.3,13.31241092]
[1768969294038,12.90587791,2983.0,2982.3,13.31241092]
[1768969294555,12.90587791,2983.0,2982.3,13.86741092]
[1768969294758,12.90587791,2983.0,2982.3,13.86841092]
[1768969294955,12.90587791,2982.8,2982.3,13.86841092]
[1768969295257,0.002,2982.8,2982.3,13.86841092]
[1768969295543,0.002,2983.0,2982.6,12.75741092]
[1768969295717,0.002,2983.0,2982.8,12.75741092]
[1768969297055,0.002,2983.0,2982.8,13.31241092]
[1768969298543,0.002,2983.0,2982.8,0.555]
[1768969299747,0.002,2983.0,2982.8,1.11]
[1768969301460,0.002,2983.0,2982.6,0.554]
[1768969301461,14.1966657,2983.0,2982.6,0.554]
[1768969301646,12.90587791,2983.0,2982.6,0.554]
[1768969301848,12.90587791,2983.0,2982.3,13.86841092]
[1768969302058,12.90587791,2983.0,2982.5,0.554]
[1768969304558,12.90587791,2983.0,2982.5,1.109]
[1768969305964,0.002,2983.0,2982.5,13.13774258]
[1768969306170,0.002,2983.0,2982.5,14.61811684]
[1768969306642,0.002,2983.0,2982.7,0.001]
[1768969306846,0.002,2982.8,2982.7,0.001]
[1768969307054,0.002,2982.8,2982.7,0.556]
[1768969308992,0.002,2983.2,2982.8,12.02874258]
[1768969309146,11.83139514,2983.5,2983.0,12.02874258]
[1768969310368,11.83139514,2983.5,2982.9,12.58274258]
[1768969311439,11.83139514,2983.5,2982.9,0.554]
[1768969311939,11.83139514,2983.5,2982.9,1.109]
[1768969312445,11.83139514,2983.5,2982.9,13.13774258]
[1768969313244,13.34990325,2983.5,2982.9,1.109]
[1768969314361,13.34990325,2983.5,2982.9,1.664]
[1768969315979,13.34990325,2983.5,2982.9,1.11]
[1768969316271,11.83139514,2983.5,2982.9,1.11]
[1768969317280,11.83139514,2983.5,2982.9,1.665]
[1768969317568,15.18317375,2983.5,2982.9,1.665]
[1768969317769,11.83139514,2983.4,2982.9,1.665]
[1768969318470,11.83339514,2983.3,2982.9,1.665]
[1768969319690,11.83339514,2983.3,2982.9,2.22]
[1768969322146,11.83339514,2983.3,2982.9,2.775]
[1768969322348,13.01693465,2983.3,2982.9,2.775]
[1768969322873,13.01693465,2983.3,2982.9,2.72788111]
[1768969323172,13.01693465,2983.3,2982.9,2.59437214]
[1768969323376,13.01693465,2983.3,2982.9,14.55243058]
[1768969323954,13.01693465,2983.3,2982.9,2.523688]
[1768969324161,13.46827911,2983.2,2982.8,0.555]
[1768969324378,13.46827911,2983.2,2982.5,0.555]
[1768969324547,13.46827911,2983.2,2982.8,1e-08]
[1768969324749,13.46827911,2983.2,2982.5,0.555]
[1768969324949,13.46827911,2983.2,2982.5,0.54579631]
[1768969325170,11.83139514,2983.0,2982.5,0.43708129]
[1768969325365,11.83139514,2983.0,2982.5,0.35852785]
[1768969325681,11.83139514,2983.0,2982.3,1.666]
[1768969326560,11.83139514,2982.8,2982.3,1.666]
[1768969327070,11.83139514,2982.8,2982.3,2.221]
[1768969327269,13.34977283,2982.8,2982.3,2.221]
[1768969327485,1.51837769,2982.8,2982.3,14.24974258]
[1768969327679,11.83139514,2983.0,2982.3,14.24974258]
[1768969328185,11.83139514,2982.9,2982.3,14.24974258]
[1768969329694,11.83139514,2982.9,2982.3,14.80474258]
[1768969330383,11.83139514,2982.9,2982.5,0.001]
[1768969330692,0.002,2982.6,2982.5,0.001]
[1768969330891,0.002,2983.3,2982.6,12.02874258]
[1768969331295,0.002,2983.5,2982.9,12.02874258]
[1768969331457,0.002,2983.5,2983.1,12.02874258]
[1768969331661,0.002,2983.5,2983.0,0.554]
[1768969331662,3.35382321,2983.5,2983.0,0.554]
[1768969331855,11.83139514,2983.4,2983.0,0.54614451]
[1768969332059,13.35430654,2983.4,2983.0,0.9767146]
[1768969332374,13.35430654,2983.4,2983.0,0.555]
[1768969333369,11.83139514,2983.3,2983.0,0.555]
[1768969334578,11.83139514,2983.3,2983.0,1.11]
[1768969337399,11.83139514,2983.3,2983.0,1.665]
[1768969339602,1.5229114,2983.4,2983.0,13.69064229]
[1768969339772,12.5830188,2983.5,2983.0,14.24564229]
[1768969340171,0.002,2983.5,2983.0,14.24564229]
[1768969342273,0.002,2983.5,2983.0,14.80064229]
[1768969342469,0.002,2983.1,2983.0,14.80064229]
[1768969342671,0.002,2983.5,2983.1,12.02564229]
[1768969342877,3.31452478,2983.8,2983.5,12.02564229]
[1768969343904,3.27360053,2983.8,2983.3,12.02564229]
[1768969344105,0.002,2984.0,2983.4,12.02564229]
[1768969345001,0.002,2984.0,2983.4,12.58064229]
[1768969346108,0.002,2984.0,2983.4,14.38035095]
[1768969347292,0.002,2984.0,2983.4,14.93535095]
[1768969349738,0.002,2984.0,2983.5,12.02564229]
[1768969352100,0.002,2984.0,2983.5,12.58064229]
[1768969353840,0.002,2984.4,2983.9,12.02564229]
[1768969354512,0.002,2984.4,2983.9,12.58064229]
[1768969355106,0.002,2984.0,2983.9,12.58064229]
[1768969355306,0.002,2984.4,2984.0,12.02564229]
[1768969356539,0.002,2984.4,2983.9,0.555]
[1768969356540,12.5830188,2984.4,2983.9,0.555]
[1768969357143,12.5830188,2984.4,2983.9,1.11]
[1768969357305,14.17657553,2984.4,2983.9,1.11]
[1768969358209,12.62290466,2984.3,2983.9,1.11]
[1768969358407,12.5810188,2984.3,2983.9,1.11]
[1768969359520,2.14955673,2984.4,2983.9,13.69064229]
[1768969360840,1.59555673,2984.4,2983.9,13.69064229]
[1768969361941,14.17657553,2984.4,2983.9,13.69064229]
[1768969362243,1.47325755,2984.3,2983.9,14.24564229]
[1768969362438,12.5830188,2984.4,2983.9,14.24564229]
[1768969363852,0.002,2984.4,2983.9,14.24564229]
[1768969364218,0.002,2984.7,2983.9,14.24564229]
[1768969364219,0.002,2984.7,2984.2,12.02564229]
[1768969364543,0.002,2984.7,2984.2,11.99547827]
[1768969364715,0.002,2984.7,2984.2,12.55047827]
[1768969366741,0.002,2984.7,2984.2,14.29177053]
[1768969367133,0.002,2984.7,2984.2,14.84677053]
[1768969367330,0.002,2984.7,2984.2,13.10547827]
[1768969367534,11.92786275,2984.7,2984.2,13.10547827]
[1768969368353,0.002,2984.5,2984.2,13.10547827]
[1768969368715,0.002,2984.7,2984.3,12.7833532]
[1768969369559,0.002,2984.7,2984.3,13.3383532]
[1768969371425,11.92786275,2984.7,2984.3,13.3383532]
[1768969372168,11.92786275,2984.7,2984.3,13.8933532]
[1768969372766,0.002,2984.7,2984.3,13.8933532]
[1768969373325,0.002,2985.2,2984.5,12.7833532]
[1768969373563,11.92586275,2985.1,2984.5,12.7833532]
[1768969374048,11.92586275,2985.1,2984.3,1.664]
[1768969374558,11.92586275,2985.1,2984.3,15.0023532]
[1768969375467,3.35008375,2985.0,2984.3,14.4483532]
[1768969375663,13.4534574,2984.9,2984.3,1.665]
[1768969376246,13.4534574,2984.9,2984.3,14.4483532]
[1768969376782,13.4534574,2984.9,2984.3,15.0033532]
[1768969379141,13.4534574,2984.9,2984.3,15.5583532]
[1768969380043,13.4534574,2984.9,2984.5,0.001]
[1768969380243,0.002,2984.7,2984.5,0.001]
[1768969381889,0.002,2984.7,2984.5,0.556]
[1768969384351,0.002,2984.7,2984.5,1.111]
[1768969385888,0.002,2984.7,2984.5,13.8943532]
[1768969386448,0.002,2984.7,2984.5,15.56128852]
[1768969386850,0.002,2984.7,2984.6,12.7833532]
[1768969387408,0.002,2984.7,2984.5,3.33293532]
[1768969387616,0.002,2984.7,2984.5,1.666]
[1768969387796,11.92786275,2984.7,2984.5,1.666]
[1768969388511,0.002,2984.7,2984.5,1.666]
[1768969388712,0.002,2984.7,2984.3,15.5583532]
[1768969389029,11.92786275,2984.7,2984.3,2.775]
[1768969389322,13.45587187,2984.7,2984.3,3.33]
[1768969389825,11.92786275,2984.7,2984.3,3.33]
[1768969391686,11.92786275,2984.7,2984.3,3.885]
[1768969392287,11.92786275,2984.7,2984.5,0.001]
[1768969392486,11.92786275,2984.7,2984.3,3.885]
[1768969394012,11.92786275,2984.7,2984.3,4.44]
[1768969395155,11.92786275,2984.7,2984.3,17.08137011]
[1768969395316,0.002,2984.7,2984.4,12.64137011]
[1768969396447,0.002,2984.7,2984.4,13.19637011]
[1768969398969,0.002,2984.7,2984.4,13.75137011]
[1768969401330,0.002,2984.7,2984.4,14.30637011]
[1768969403783,0.002,2984.7,2984.6,0.001]
[1768969404077,0.002,2984.7,2984.6,0.00019368]
[1768969405575,12.39669577,2984.7,2984.6,0.00019368]
[1768969405868,13.63656535,2984.7,2984.6,0.00019368]
[1768969406239,13.63656535,2984.7,2984.6,0.55519368]
[1768969406740,13.63656535,2984.7,2984.6,0.54734167]
[1768969406964,13.63656535,2984.7,2984.6,0.53948964]
[1768969407164,1.24186958,2984.7,2984.6,0.53948964]
[1768969408472,0.002,2984.7,2984.6,0.53948964]
[1768969408675,0.002,2984.7,2984.6,1.09448964]
[1768969409873,0.002,2984.9,2984.6,13.73585975]
[1768969410457,0.002,2984.9,2984.6,1.09448964]
[1768969410994,0.002,2984.9,2984.6,1.64948964]
[1768969411197,1.63206736,2984.9,2984.6,1.64948964]
[1768969411600,14.02676313,2984.9,2984.6,1.64948964]
[1768969413377,14.02676313,2984.9,2984.6,2.20448964]
[1768969413899,14.02676313,2984.9,2984.6,1.87725135]
[1768969415468,0.002,2984.7,2984.6,1.87725135]
[1768969415772,0.002,2984.7,2984.6,2.43225135]
[1768969418004,0.002,2984.7,2984.6,2.98725135]
[1768969420607,0.002,2984.7,2984.6,3.54225135]
[1768969422391,0.002,2984.7,2984.6,16.18362146]
[1768969423077,0.002,2984.7,2984.6,16.73862146]
[1768969423686,0.002,2984.7,2984.6,4.09725135]
[1768969423889,0.002,2984.7,2984.6,3.7700168]
[1768969424974,0.002,2984.7,2984.6,16.41138691]
[1768969425579,0.002,2984.7,2984.6,16.96638691]
[1768969428222,0.002,2984.7,2984.6,17.52138691]
[1768969430004,0.002,2984.7,2984.6,4.8800168]
[1768969431006,0.002,2984.7,2984.6,5.4350168]
[1768969433626,0.002,2984.7,2984.6,5.9900168]
[1768969435743,0.002,2984.7,2984.6,18.72125827]
[1768969435903,0.002,2984.7,2984.6,19.27625827]
[1768969437241,0.002,2984.7,2984.6,6.5450168]
[1768969438312,0.002,2984.7,2984.6,7.1000168]
[1768969440625,0.002,2984.7,2984.6,7.6550168]
[1768969441124,11.83728287,2984.7,2984.6,7.6550168]
[1768969441323,13.02121116,2984.7,2984.6,7.6550168]
[1768969441922,13.02121116,2984.7,2984.3,4.44]
[1768969441923,11.83528287,2984.6,2984.3,4.44]
[1768969442124,11.83528287,2984.6,2983.6,13.28524147]
[1768969442950,11.83528287,2984.6,2984.3,0.555]
[1768969443133,11.83528287,2984.4,2984.3,0.43951119]
[1768969443337,11.83528287,2984.4,2984.3,0.29324349]
[1768969443522,11.83528287,2984.4,2984.3,0.15916097]
[1768969443844,11.83528287,2984.4,2983.8,12.73124147]
[1768969445419,11.83528287,2984.4,2983.8,13.28624147]
[1768969445825,11.83528287,2984.3,2983.8,13.28624147]
[1768969446153,11.83528287,2984.3,2983.8,0.555]
[1768969447917,11.83528287,2984.2,2983.8,0.555]
[1768969448129,11.83528287,2984.2,2983.8,1.11]
[1768969449649,11.83528287,2984.1,2984.0,0.001]
[1768969449819,13.35390988,2984.1,2984.0,0.001]
[1768969450017,13.35390988,2984.1,2983.8,1.11]
[1768969450740,0.554,2984.0,2983.5,0.555]
[1768969450949,11.83528287,2983.9,2983.5,0.555]
[1768969451142,13.07421116,2983.8,2983.5,0.555]
[1768969451660,13.02421116,2983.8,2983.5,0.555]
[1768969453159,13.02421116,2983.8,2983.5,1.11]
[1768969455642,13.02421116,2983.8,2983.5,1.665]
[1768969457654,0.554,2984.0,2983.5,14.53373429]
[1768969457961,0.554,2984.0,2983.5,15.08873429]
[1768969458765,12.59676417,2984.0,2983.5,15.08873429]
[1768969459268,12.04276417,2983.9,2983.5,2.22]
[1768969460333,12.04276417,2983.9,2983.5,2.775]
[1768969460534,13.63756155,2983.8,2983.5,2.775]
[1768969461360,13.63756155,2983.8,2983.7,0.001]
[1768969463078,13.63756155,2983.8,2983.7,0.556]
[1768969466159,13.63756155,2983.8,2983.7,1.111]
[1768969466363,1.59479738,2983.8,2983.7,1.111]
[1768969466667,12.04276417,2983.9,2983.7,1.111]
[1768969467553,0.554,2984.0,2983.7,13.97973429]
[1768969468372,0.554,2984.0,2983.7,1.111]
[1768969468561,0.554,2984.0,2983.7,1.666]
[1768969469256,12.59676417,2984.0,2983.7,1.666]
[1768969469470,14.19155341,2984.0,2983.7,1.666]
[1768969470171,12.08465565,2983.9,2983.7,1.666]
[1768969470373,12.04276417,2983.9,2983.7,1.666]
[1768969470943,12.04276417,2983.9,2983.7,2.221]
[1768969472353,12.59676417,2984.0,2983.7,2.221]
[1768969472555,14.19155587,2984.0,2983.7,2.221]
[1768969473280,5.50002418,2984.0,2983.7,2.221]
[1768969473579,12.08465565,2983.9,2983.7,2.776]
[1768969473789,12.04276417,2983.9,2983.7,2.776]
[1768969474878,12.04276417,2983.9,2983.5,2.29812711]
[1768969475050,12.04276417,2983.9,2983.5,2.20028194]
[1768969475252,12.04276417,2983.9,2983.5,1.72512281]
[1768969475465,12.04276417,2983.9,2983.5,1.50546133]
[1768969475648,12.04276417,2983.9,2983.5,1.15434961]
[1768969475853,12.04276417,2983.9,2983.5,1.65083099]
[1768969476054,12.04276417,2983.9,2983.5,1.57369449]
[1768969478385,12.04276417,2983.8,2983.5,1.57369449]
[1768969478588,12.04276417,2983.8,2983.5,2.12869449]
[1768969478807,12.04276417,2983.8,2983.5,2.05530123]
[1768969478957,12.04276417,2983.8,2983.5,1.66081252]
[1768969479150,12.04276417,2983.8,2983.5,1.35398236]
[1768969479356,12.04276417,2983.8,2983.5,1.22248222]
[1768969479855,3.90526278,2984.0,2983.5,1.22248222]
[1768969480059,12.04276417,2983.9,2983.5,1.22248222]
[1768969481298,12.04276417,2983.9,2983.5,1.77748222]
[1768969483095,12.04276417,2983.9,2983.5,14.64621651]
[1768969483798,12.04276417,2983.9,2983.5,15.20121651]
[1768969484364,0.002,2983.7,2983.5,15.20121651]
[1768969486110,0.002,2983.7,2983.5,15.75621651]
[1768969486947,0.002,2983.7,2983.5,2.88748222]
[1768969488415,0.002,2983.7,2983.5,15.58192904]
[1768969488589,0.002,2983.7,2983.5,3.44248222]
[1768969491128,0.002,2983.7,2983.5,16.69192904]
[1768969491507,0.002,2983.7,2983.6,12.69444682]
[1768969491718,0.002,2983.7,2983.6,12.36711105]
[1768969493405,0.002,2983.7,2983.6,12.92211105]
[1768969496030,0.002,2983.7,2983.6,13.47711105]
[1768969498332,0.002,2983.7,2983.6,14.03211105]
[1768969498534,3.90504046,2984.2,2983.8,12.69444682]
[1768969498740,0.39050405,2984.1,2983.8,12.69444682]
[1768969500343,12.23595186,2984.1,2983.6,14.35944682]
[1768969500641,15.58704996,2984.1,2983.6,14.35944682]
[1768969500827,15.58704996,2984.1,2983.6,14.91444682]
[1768969501338,11.84544781,2984.0,2983.6,14.91444682]
[1768969501538,13.79465128,2984.0,2983.6,14.91444682]
[1768969502126,1.94920347,2984.0,2983.6,14.91444682]
[1768969503649,1.94920347,2984.0,2983.6,15.46944682]
[1768969504810,17.14591433,2984.0,2983.6,15.46944682]
[1768969505741,13.79465128,2984.0,2983.6,15.46944682]
[1768969506242,13.79465128,2984.0,2983.6,16.02444682]
[1768969506840,17.14587136,2984.0,2983.6,16.02444682]
[1768969507653,0.002,2983.8,2983.6,16.02444682]
[1768969508246,11.84744781,2983.8,2983.6,3.33]
[1768969508427,13.56243495,2983.8,2983.6,3.885]
[1768969508753,1.71698714,2983.8,2983.6,3.885]
[1768969510043,1.71698714,2983.8,2983.4,1.665]
[1768969510044,13.56243495,2983.8,2983.4,1.11]
[1768969510258,13.56243495,2983.8,2982.3,2.776]
[1768969510259,11.84544781,2983.5,2983.0,13.81725682]
[1768969510460,11.84544781,2983.5,2983.0,1.12281]
[1768969513148,11.84544781,2983.3,2983.0,1.12281]
[1768969513351,11.84544781,2983.3,2983.0,1e-08]
[1768969513550,7.2577608,2983.4,2982.5,13.24944682]
[1768969513551,11.84544781,2983.1,2982.5,13.24944682]
[1768969514772,11.84544781,2983.1,2982.5,0.001]
[1768969515138,11.84544781,2983.1,2982.5,12.76233831]
[1768969515758,11.84544781,2983.1,2982.5,13.31733831]
[1768969516163,12.94357124,2983.0,2982.5,13.31733831]
[1768969518156,12.94357124,2983.0,2982.5,13.87233831]
[1768969518664,1.91032086,2983.2,2982.5,13.87233831]
[1768969518665,12.94357124,2983.1,2982.5,13.87233831]
[1768969518981,12.94357124,2983.3,2982.5,15.53717214]
[1768969519277,16.8994573,2983.4,2982.5,15.53717214]
[1768969520081,16.8994573,2983.4,2982.8,12.76133831]
[1768969520444,16.8994573,2983.4,2982.8,13.31633831]
[1768969521191,0.0418999,2983.3,2982.8,13.31633831]
[1768969522973,3.39391035,2983.3,2982.8,13.87133831]
[1768969524078,0.0418999,2983.3,2982.8,13.87133831]
[1768969525592,0.0418999,2983.3,2982.8,14.42633831]
[1768969528058,0.0418999,2983.3,2982.8,14.98133831]
[1768969530992,0.0418999,2983.3,2982.8,15.53633831]
[1768969531771,12.94357124,2983.6,2982.8,15.53633831]
[1768969531973,0.554,2983.4,2982.8,15.53633831]
[1768969532200,0.554,2983.4,2983.0,12.76233831]
[1768969532499,0.002,2983.1,2983.0,12.76233831]
[1768969533297,0.002,2983.1,2983.0,13.31733831]
[1768969535697,0.002,2983.1,2983.0,13.87233831]
[1768969537797,0.002,2983.1,2983.0,1.111]
[1768969537968,0.002,2983.1,2983.0,1.666]
[1768969539566,12.94557124,2983.1,2983.0,1.666]
[1768969540469,12.94557124,2983.1,2983.0,2.221]
[1768969542698,0.002,2983.1,2983.0,2.221]
[1768969542895,12.94557124,2983.1,2983.0,2.776]
[1768969544967,0.002,2983.1,2983.0,2.776]
[1768969545377,0.002,2983.1,2983.0,3.331]
[1768969548221,0.002,2983.1,2983.0,3.886]
[1768969549528,0.002,2983.1,2983.0,15.82014508]
[1768969550724,0.002,2983.1,2983.0,16.37514508]
[1768969552126,0.002,2983.1,2983.0,4.441]
[1768969552628,12.75605729,2983.1,2983.0,4.441]
[1768969552996,0.002,2983.1,2983.0,4.441]
[1768969553196,0.002,2983.1,2983.0,4.996]
[1768969555691,0.002,2983.1,2983.0,5.551]
[1768969556034,0.002,2983.1,2983.0,17.48514508]
[1768969558218,0.002,2983.1,2983.0,18.04014508]
[1768969560627,0.002,2983.1,2983.0,18.59514508]
[1768969562962,0.002,2983.1,2983.0,19.15014508]
[1768969565433,0.002,2983.1,2983.0,19.70514508]
[1768969566744,12.80405729,2983.7,2983.1,11.93414508]
[1768969566961,0.05,2983.7,2983.3,11.93414508]
[1768969567836,12.75605729,2984.0,2983.4,11.93414508]
[1768969568037,1.37205613,2984.0,2983.4,11.93414508]
[1768969569436,12.75605729,2984.0,2983.4,11.93414508]
[1768969570050,12.75605729,2984.0,2983.4,12.48914508]
[1768969572479,12.75605729,2984.0,2983.4,13.04414508]
[1768969575074,12.75605729,2984.0,2983.4,13.59914508]
[1768969577493,12.75605729,2984.0,2983.4,14.15414508]
[1768969578862,0.002,2984.0,2983.4,14.15414508]
[1768969579197,12.56009623,2984.0,2983.6,12.22132068]
[1768969579569,12.56009623,2984.0,2983.5,12.22132068]
[1768969579806,12.56009623,2984.0,2983.6,0.001]
[1768969580098,0.002,2983.8,2983.6,0.001]
[1768969582287,0.002,2983.8,2983.6,0.556]
[1768969582897,0.002,2983.8,2983.6,12.77732068]
[1768969584770,0.002,2983.8,2983.6,13.33232068]
[1768969584970,0.002,2983.8,2983.6,1.111]
[1768969587222,0.002,2983.8,2983.6,1.666]
[1768969587992,0.002,2983.8,2983.6,13.88732068]
[1768969590321,0.002,2983.8,2983.6,2.221]
[1768969592927,0.002,2983.8,2983.6,2.776]
[1768969595525,0.002,2983.8,2983.6,3.331]
[1768969597628,0.002,2983.8,2983.6,15.55232068]
[1768969597833,0.002,2984.0,2983.7,12.22132068]
[1768969598034,0.554,2984.2,2983.7,12.22132068]
[1768969598411,13.11209623,2984.2,2983.7,12.22132068]
[1768969600221,13.11209623,2984.2,2983.7,12.77632068]
[1768969601431,0.554,2984.2,2983.7,12.77632068]
[1768969601636,13.11209623,2984.2,2983.7,14.98413685]
[1768969602833,13.11209623,2984.2,2983.8,12.22132068]
[1768969604133,12.56009623,2984.5,2983.8,12.22132068]
[1768969604321,0.554,2984.4,2983.8,12.22132068]
[1768969604524,0.554,2984.4,2984.0,12.22132068]
[1768969604728,12.56009623,2984.5,2984.0,12.22132068]
[1768969604729,0.002,2984.5,2984.0,13.92963685]
[1768969604928,0.002,2984.2,2984.0,13.92963685]
[1768969605127,0.002,2984.5,2984.1,12.22132068]
[1768969607738,0.002,2984.5,2984.1,12.77632068]
[1768969610216,0.002,2984.5,2984.1,13.33132068]
[1768969611136,0.002,2984.5,2984.1,14.89088436]
[1768969611745,11.84484342,2984.5,2984.1,14.89088436]
[1768969611933,11.84484342,2984.5,2984.1,13.33132068]
[1768969612954,11.84484342,2984.5,2984.1,13.88632068]
[1768969613917,11.84484342,2984.5,2984.0,0.555]
[1768969613918,11.84284342,2984.3,2984.0,0.555]
[1768969614121,11.84284342,2984.1,2983.9,0.001]
[1768969614353,1.18847307,2984.0,2983.9,0.001]
[1768969614557,11.84284342,2984.1,2983.9,0.001]
[1768969615220,11.84284342,2984.1,2983.5,0.555]
[1768969615447,0.554,2984.4,2982.9,3.88]
[1768969615448,12.39684342,2984.0,2983.2,2.21900074]
[1768969616794,11.84284342,2983.9,2983.2,2.21900074]
[1768969617882,11.84284342,2983.9,2983.2,2.77400074]
[1768969618050,11.84284342,2983.7,2983.2,0.555]
[1768969618351,11.84284342,2983.7,2983.2,12.70542874]
[1768969620260,11.84284342,2983.7,2983.2,13.26042874]
[1768969622710,11.84284342,2983.7,2983.2,13.81542874]
[1768969625083,11.84284342,2983.7,2983.2,14.37042874]
[1768969627714,11.84284342,2983.7,2983.2,14.92542874]
[1768969628613,11.84284342,2983.7,2983.2,2.775]
[1768969628785,12.56539954,2983.7,2983.4,0.001]
[1768969629183,11.84284342,2983.6,2983.4,0.001]
[1768969630310,11.84284342,2983.6,2983.4,0.556]
[1768969632819,11.84284342,2983.6,2983.4,1.111]
[1768969635124,11.84284342,2983.6,2983.4,1.666]
[1768969637947,11.84284342,2983.6,2983.4,2.221]
[1768969639550,13.21366097,2983.7,2983.4,2.221]
[1768969639909,12.65966097,2983.6,2983.4,2.221]
[1768969640113,13.98102707,2983.6,2983.4,2.221]
[1768969640447,0.002,2983.5,2983.4,2.776]
[1768969640752,12.66166097,2983.5,2983.4,2.776]
[1768969642622,0.002,2983.5,2983.4,3.331]
[1768969644217,12.66166097,2983.5,2983.4,3.331]
[1768969644551,13.98342707,2983.5,2983.4,3.331]
[1768969645455,13.98342707,2983.5,2983.4,3.886]
[1768969647842,13.98342707,2983.5,2983.4,4.441]
[1768969649427,12.66166097,2983.5,2983.4,4.441]
[1768969649627,12.66166097,2983.5,2983.2,1.11]
[1768969650463,12.66166097,2983.5,2983.2,1.665]
[1768969652242,0.002,2983.3,2983.2,1.665]
[1768969652974,0.002,2983.3,2983.2,2.22]
[1768969653387,0.002,2983.3,2983.2,14.44270835]
[1768969655175,0.002,2983.3,2983.2,2.22]
[1768969655344,0.002,2983.3,2983.2,2.775]
[1768969657945,0.002,2983.3,2983.2,3.33]
[1768969658482,0.002,2983.3,2983.2,15.55270835]
[1768969659562,0.002,2983.3,2983.2,3.33]
[1768969660806,0.002,2983.3,2983.2,3.885]
[1768969663201,0.002,2983.3,2983.2,16.10770835]
[1768969663381,13.21566097,2983.7,2983.2,4.44]
[1768969663572,13.21566097,2983.7,2983.3,12.22270835]
[1768969663903,14.53722707,2983.7,2983.2,16.66270835]
[1768969665910,12.31346414,2984.0,2983.3,12.03494021]
[1768969666084,2.068071,2983.9,2983.3,12.03494021]
[1768969666488,12.31346414,2983.9,2983.3,12.03494021]
[1768969667805,12.86746414,2984.0,2983.3,12.03494021]
[1768969668010,2.054071,2983.9,2983.3,12.03494021]
[1768969668205,2.054071,2983.9,2983.3,14.77925489]
[1768969668873,12.31346414,2984.1,2983.3,14.77925489]
[1768969669071,0.59589008,2984.0,2983.3,14.77925489]
[1768969670307,0.59589008,2984.0,2983.3,12.58994021]
[1768969670817,12.90935422,2984.0,2983.3,13.14494021]
[1768969671010,12.86746414,2984.0,2983.3,13.14494021]
[1768969673225,12.86746414,2984.0,2983.3,13.69994021]
[1768969675220,12.86746414,2984.0,2983.5,12.03594021]
[1768969675634,0.002,2983.8,2983.5,12.59094021]
[1768969676334,12.31546414,2983.8,2983.5,0.556]
[1768969677424,13.93773416,2983.8,2983.5,0.556]
[1768969678640,13.93773416,2983.8,2983.5,1.111]
[1768969681151,13.93773416,2983.8,2983.5,1.666]
[1768969683424,13.93773416,2983.8,2983.5,2.221]
[1768969685858,13.93773416,2983.8,2983.5,2.776]
[1768969688358,13.93773416,2983.8,2983.5,3.331]
[1768969690876,13.93773416,2983.8,2983.5,3.886]
[1768969693776,13.93773416,2983.8,2983.5,4.441]
[1768969694442,13.93773416,2983.8,2983.5,4.11365002]
[1768969694642,13.70723756,2983.7,2983.5,4.11365002]
[1768969696193,13.70723756,2983.7,2983.5,4.66865002]
[1768969698269,12.31346414,2983.7,2983.5,4.66865002]
[1768969698507,0.002,2983.8,2983.5,4.66865002]
[1768969698799,0.002,2983.8,2983.7,0.001]
[1768969699501,16.32287511,2983.8,2983.7,0.001]
[1768969699694,16.32287511,2983.8,2983.5,5.22365002]
[1768969699885,18.34588513,2983.8,2983.5,5.22365002]
[1768969700802,14.99445407,2983.8,2983.5,5.22365002]
[1768969700974,13.01133834,2983.7,2983.5,5.22365002]
[1768969701174,12.96944405,2983.7,2983.5,5.77865002]
[1768969704315,12.96944405,2983.7,2983.5,6.33365002]
[1768969704507,14.80403377,2983.7,2983.5,6.33365002]
[1768969706719,2.38858972,2983.7,2983.5,6.88865002]
[1768969707030,0.554,2983.7,2983.5,6.88865002]
[1768969709117,0.554,2983.7,2983.5,7.44365002]
[1768969710737,0.002,2983.8,2983.5,20.13335758]
[1768969711033,0.556,2983.8,2983.5,7.44365002]
[1768969711238,0.04189429,2983.7,2983.5,7.44365002]
[1768969711437,0.04189429,2983.7,2983.5,7.99865002]
[1768969711602,13.01133834,2983.7,2983.5,7.99865002]
[1768969711803,0.04189569,2983.6,2983.5,7.99865002]
[1768969712204,13.01133974,2983.6,2983.5,7.99865002]
[1768969712443,12.96944405,2983.6,2983.5,7.99865002]
[1768969713537,14.66132617,2983.7,2983.5,7.99865002]
[1768969714136,14.66132617,2983.7,2983.5,8.55365002]
[1768969716420,14.66132617,2983.7,2983.5,9.10865002]
[1768969718955,14.66132617,2983.7,2983.5,9.66365002]
[1768969721210,1.69188212,2983.7,2983.5,9.66365002]
[1768969721447,1.69188212,2983.7,2983.5,10.21865002]
[1768969722947,13.52544405,2983.8,2983.5,10.21865002]
[1768969723946,13.52544405,2983.8,2983.5,10.77365002]
[1768969726363,13.52544405,2983.8,2983.5,11.32865002]